[Event "21st RLP-Seniors Open 2024"]
[Site "Altenkirchen Ww"]
[Date "2024.09.04"]
[Round "2.1"]
[White "Fleuch, Hans-Juergen"]
[Black "Boidman, Yuri"]
[Result "0-1"]
[Annotator "RC"]
[ECO "A00"]
[WhiteElo "1969"]
[BlackElo "2245"]
[PlyCount "112"]
[EventDate "2024.09.02"]
[EventType "swiss"]
[EventCountry "GER"]
[SourceTitle "playchess.com"]
[Source "ChessBase"]
[SourceQuality "1"]
[TimeControl "40/5400+30:1800+30"]

1. e4 {[%emt 0:00:04]} d5 {[%emt 0:00:20]} 2. Nc3 {[%emt 0:03:32]} d4 {[%emt 0:03:18]} 3. Nce2 {[%emt 0:00:19]} e5 {[%emt 0:00:14]} 4. Ng3 {[%emt 0:01:10]} Be6 {[%emt 0:00:13]} 5. d3 {[%emt 0:03:05]} c5 {[%emt 0:02:06]} 6. Be2 {[%emt 0:08:57]} g6 {[%emt 0:02:37]} 7. Bg4 {[%emt 0:02:11]} Bxg4 {[%emt 0:00:51]} 8. Qxg4 {[%emt 0:00:15]} h5 {[%emt 0:00:09]} 9. Qd1 {[%emt 0:02:17]} h4 {[%emt 0:00:17]} 10. Nf1 {[%emt 0:03:01]} Bh6 {[%emt 0:01:14]} 11. Nd2 {[%emt 0:02:52]} Nc6 {[%emt 0:01:58]} 12. Nb3 {[%emt 0:10:35]} Bxc1 {[%emt 0:01:03]} 13. Qxc1 {[%emt 0:02:11]} g5 {[%emt 0:05:37]} 14. Qd2 {[%emt 0:04:58]} b6 {[%emt 0:01:43]} 15. Ne2 {[%emt 0:05:16]} f6 {[%emt 0:00:36]} 16. O-O-O {[%emt 0:02:38]} a5 {[%emt 0:01:45]} 17. Kb1 {[%emt 0:06:35]} a4 {[%emt 0:01:31]} 18. Nbc1 {[%emt 0:00:17]} Nge7 {[%emt 0:00:14]} 19. g3 {[%emt 0:00:35]} Qd7 {[%emt 0:03:22]} 20. f4 {[%emt 0:02:39]} g4 {[%emt 0:01:06]} 21. gxh4 {[%emt 0:15:28]} O-O-O {[%emt 0:01:49]} 22. f5 {[%emt 0:01:12]} Rxh4 {[%emt 0:00:34]} 23. Ng3 {[%emt 0:02:10]} Rdh8 {[%emt 0:02:06]} 24. Qg2 {[%emt 0:01:50]} Kc7 {[%emt 0:01:25]} 25. Rdg1 {[%emt 0:07:19]} Nc8 {[%emt 0:00:46]} 26. Qe2 {[%emt 0:00:30]} Qh7 {[%emt 0:01:19]} 27. Nf1 {[%emt 0:00:16]} Rg8 {[%emt 0:01:07]} 28. Rg3 {[%emt 0:00:19]} Nd6 {[%emt 0:04:49]} 29. Rhg1 {[%emt 0:00:29]} Qh5 {[%emt 0:00:15]} 30. c4 {[%emt 0:01:05]} dxc3 {[%emt 0:06:24]} 31. bxc3 {[%emt 0:00:38]} b5 {[%emt 0:08:36]} 32. Qd1 {[%emt 0:03:01]} Ne7 {[%emt 0:04:42]} 33. Qe2 {[%emt 0:02:26]} c4 {[%emt 0:08:26]} 34. R1g2 {[%emt 0:00:09]} Qf7 {[%emt 0:04:26]} 35. Qe3 {[%emt 0:02:28]} Nc6 {[%emt 0:04:31]} 36. Qe2 {[%emt 0:01:09]} cxd3 {[%emt 0:00:57]} 37. Qxd3 {[%emt 0:00:31]} Qc4 {[%emt 0:00:33]} 38. Nd2 {[%emt 0:00:33]} Qc5 {[%emt 0:02:07]} 39. Qe3 {[%emt 0:02:26]} Qxe3 {[%emt 0:00:55]} 40. Rxe3 {[%emt 0:00:01]} Na5 {[%emt 0:01:18]} 41. Nd3 {[%emt 0:09:26]} Rgh8 {[%emt 0:02:13]} 42. Nb4 {[%emt 0:05:15]} Rxh2 {[%emt 0:00:39]} 43. Reg3 {[%emt 0:00:48]} Rxg2 {[%emt 0:03:29]} 44. Rxg2 {[%emt 0:00:10]} Rh1+ {[%emt 0:00:37]} 45. Kc2 {[%emt 0:00:19]} Nac4 {[%emt 0:00:32]} 46. Nd5+ {[%emt 0:03:47]} Kc6 {[%emt 0:01:47]} 47. Nxc4 {[%emt 0:00:18]} Nxc4 {[%emt 0:01:57]} 48. Rxg4 {[%emt 0:00:26]} Rh2+ {[%emt 0:00:37]} 49. Kc1 {[%emt 0:17:04]} Rh1+ {[%emt 0:02:12]} 50. Kc2 {[%emt 0:00:00]} Kc5 {[%emt 0:00:52]} 51. Rg2 {[%emt 0:00:00]} Ra1 {[%emt 0:06:03]} 52. Rg6 {[%emt 0:00:00]} Rxa2+ {[%emt 0:00:20]} 53. Kc1 {[%emt 0:00:00]} Re2 {[%emt 0:08:59]} 54. Nxf6 {[%emt 0:00:00]} b4 {[%emt 0:00:16]} 55. Nd7+ {[%emt 0:00:00]} Kb5 {[%emt 0:00:09]} 56. cxb4 {[%emt 0:00:00]} a3 {[%emt 0:00:20]} 0-1

[Event "21st RLP-Seniors Open 2024"]
[Site "Altenkirchen Ww"]
[Date "2024.09.04"]
[Round "2.2"]
[White "Rooze, Jan"]
[Black "Helmond, Frans"]
[Result "1-0"]
[Annotator "RC"]
[ECO "B28"]
[WhiteElo "2235"]
[BlackElo "1958"]
[PlyCount "95"]
[EventDate "2024.09.02"]
[EventType "swiss"]
[EventCountry "GER"]
[SourceTitle "playchess.com"]
[Source "ChessBase"]
[SourceQuality "1"]
[TimeControl "40/5400+30:1800+30"]

1. e4 {[%emt 0:00:05]} c5 {[%emt 0:00:09]} 2. Nf3 {[%emt 0:00:05]} a6 {[%emt 0:00:20]} 3. c3 {[%emt 0:00:28]} d5 {[%emt 0:00:24]} 4. exd5 {[%emt 0:00:12]} Qxd5 {[%emt 0:00:03]} 5. d4 {[%emt 0:00:07]} e6 {[%emt 0:00:18]} 6. Be2 {[%emt 0:11:37]} Nc6 {[%emt 0:01:57]} 7. O-O {[%emt 0:09:59]} Nf6 {[%emt 0:00:16]} 8. Be3 {[%emt 0:03:38]} cxd4 {[%emt 0:01:47]} 9. Nxd4 {[%emt 0:00:54]} Nxd4 {[%emt 0:07:49]} 10. Bxd4 {[%emt 0:00:31]} Be7 {[%emt 0:00:09]} 11. Bf3 {[%emt 0:07:50]} Qd8 {[%emt 0:18:44]} 12. Nd2 {[%emt 0:02:22]} Qc7 {[%emt 0:00:35]} 13. Qe2 {[%emt 0:03:17]} O-O {[%emt 0:01:53]} 14. Nc4 {[%emt 0:03:08]} Nd7 {[%emt 0:07:40]} 15. Rad1 {[%emt 0:03:29]} Bc5 {[%emt 0:04:54]} 16. Rfe1 {[%emt 0:07:09]} Rb8 {[%emt 0:03:07]} 17. b4 {[%emt 0:11:59]} Bxd4 {[%emt 0:00:41]} 18. cxd4 {[%emt 0:00:06]} b5 {[%emt 0:05:53]} 19. Na5 {[%emt 0:00:15]} Nb6 {[%emt 0:00:14]} 20. Rc1 {[%emt 0:05:20]} Qd6 {[%emt 0:07:28]} 21. Qe5 {[%emt 0:00:15]} Qxe5 {[%emt 0:00:24]} 22. dxe5 {[%emt 0:00:10]} Bd7 {[%emt 0:05:14]} 23. Red1 {[%emt 0:00:36]} Rbc8 {[%emt 0:12:28]} 24. Bb7 {[%emt 0:01:47]} Rxc1 {[%emt 0:04:47]} 25. Rxc1 {[%emt 0:00:08]} Bc8 {[%emt 0:01:56]} 26. Be4 {[%emt 0:02:23]} f5 {[%emt 0:05:37]} 27. exf6 {[%emt 0:00:38]} gxf6 {[%emt 0:00:09]} 28. Rc6 {[%emt 0:02:13]} Nd5 {[%emt 0:03:49]} 29. Bxd5 {[%emt 0:00:59]} exd5 {[%emt 0:00:01]} 30. Rd6 {[%emt 0:00:13]} Re8 {[%emt 0:00:14]} 31. Kf1 {[%emt 0:00:39]} Be6 {[%emt 0:00:11]} 32. f3 {[%emt 0:03:07]} Kf7 {[%emt 0:00:17]} 33. Nc6 {[%emt 0:01:15]} Kg6 {[%emt 0:01:26]} 34. Nd4 {[%emt 0:00:22]} Bc8 {[%emt 0:01:21]} 35. Rxd5 {[%emt 0:00:53]} Re3 {[%emt 0:00:03]} 36. Rc5 {[%emt 0:02:13]} Be6 {[%emt 0:00:35]} 37. Kf2 {[%emt 0:00:32]} Ra3 {[%emt 0:02:48]} 38. Nxe6 {[%emt 0:00:11]} Rxa2+ {[%emt 0:00:04]} 39. Kg3 {[%emt 0:00:18]} Rb2 {[%emt 0:00:08]} 40. Nf4+ {[%emt 0:00:18]} Kh6 {[%emt 0:01:06]} 41. Rc6 {[%emt 0:31:36]} Rxb4 {[%emt 0:34:01]} 42. Rxa6 {[%emt 0:01:14]} Kg5 {[%emt 0:00:00]} 43. h4+ {[%emt 0:01:05]} Kf5 {[%emt 0:00:00]} 44. Rxf6+ {[%emt 0:00:14]} Kxf6 {[%emt 0:00:46]} 45. Nd5+ {[%emt 0:00:07]} Ke5 {[%emt 0:00:05]} 46. Nxb4 {[%emt 0:00:06]} Kd4 {[%emt 0:00:02]} 47. Kf4 {[%emt 0:01:36]} Kc4 {[%emt 0:00:23]} 48. Na6 {[%emt 0:00:18]} 1-0

[Event "21st RLP-Seniors Open 2024"]
[Site "Altenkirchen Ww"]
[Date "2024.09.04"]
[Round "2.3"]
[White "Paus, Franz"]
[Black "Meyer, Armin"]
[Result "0-1"]
[Annotator "TA"]
[ECO "A41"]
[WhiteElo "1968"]
[BlackElo "2195"]
[PlyCount "150"]
[EventDate "2024.09.02"]
[EventType "swiss"]
[EventCountry "GER"]
[SourceTitle "playchess.com"]
[Source "ChessBase"]
[SourceQuality "1"]
[TimeControl "40/5400+30:1800+30"]

{[%evp 10,150,-12,-23,-31,-63,-63,-68,-61,-78,-77,-86,-72,-66,-79,-78,-79,-85,-53,-56,-41,-49,-35,-36,0,-39,-31,-105,-91,-81,-83,-89,-56,-64,-56,-51,-45,-41,-39,-57,0,-36,0,-53,-28,-23,-16,-15,-15,-22,0,-15,0,0,0,-2,-2,-2,0,0,0,0,36,34,38,-8,-8,-13,-5,-8,-2,-3,0,-35,-2,-2,-2,-2,-2,-2,0,-2,0,-2,0,-2,-2,-9,0,0,0,-16,0,0,0,0,0,0,0,0,0,-91,-32,-91,-91,-91,-91,-91,-91,-91,-91,-91,-91,-91,-91,-91,0,-61,-66,-64,-64,-75,-54,-45,-26,-33,-25,-24,-20,-364,-366,-629,-605,-665,-622,-647,-596,-578,-561,-29978,-29979,-29967,-29954]} 1. d4 {[%emt 0:00:04]} d6 {[%emt 0:00:17]} 2. c4 {[%emt 0:00:53]} e5 {[%emt 0:00:11]} 3. dxe5 {[%emt 0:00:54]} dxe5 {[%emt 0:00:03]} 4. Qxd8+ {[%emt 0:00:07]} Kxd8 {[%emt 0:00:11]} 5. a3 {[%emt 0:04:30]} Be6 {[%emt 0:00:38]} 6. e4 {[%emt 0:00:40]} Nf6 {[%emt 0:04:10]} 7. Bg5 {[%emt 0:00:28]} h6 {[%emt 0:01:19]} 8. Bxf6+ {[%emt 0:00:59]} gxf6 {[%emt 0:00:12]} 9. Nc3 {[%emt 0:00:05]} c6 {[%emt 0:00:59]} 10. Nf3 {[%emt 0:03:21]} a5 {[%emt 0:01:31]} 11. Be2 {[%emt 0:05:12]} Nd7 {[%emt 0:02:09]} 12. O-O {[%emt 0:01:43]} a4 {[%emt 0:01:11]} 13. Rac1 {[%emt 0:04:32]} Bc5 {[%emt 0:09:17]} 14. Rfd1 {[%emt 0:04:01]} Ke7 {[%emt 0:01:31]} 15. h3 {[%emt 0:06:28]} Rhg8 {[%emt 0:07:47]} 16. Kf1 $1 {[%emt 0:00:13]} Bb6 {[%emt 0:10:53]} 17. Nh4 {[%emt 0:24:04]} (17. Nd5+ $5 cxd5 18. cxd5 $11) 17... Bd4 {[%emt 0:07:08]} 18. Nf3 {[%emt 0:01:32]} (18. Nd5+ $15 cxd5 19. cxd5) 18... Bxc3 {[%emt 0:00:30]} 19. Rxc3 {[%emt 0:01:26]} Nc5 {[%emt 0:00:10]} 20. Re3 {[%emt 0:05:38]} Rad8 {[%emt 0:02:28]} 21. Rxd8 {[%emt 0:00:42]} Rxd8 {[%emt 0:00:11]} 22. Ke1 {[%emt 0:00:56]} Nb3 {[%emt 0:02:00]} 23. Rc3 {[%emt 0:02:41]} Rg8 {[%emt 0:00:38]} 24. Bf1 {[%emt 0:01:36]} Rd8 {[%emt 0:03:22]} 25. Be2 {[%emt 0:00:23]} Rd7 {[%emt 0:05:17]} 26. h4 {[%emt 0:07:47]} (26. c5 $11) 26... Kd6 {[%emt 0:02:10]} 27. Bd1 {[%emt 0:06:11]} Nc5 {[%emt 0:00:14]} 28. Bc2 {[%emt 0:02:07]} Kc7 {[%emt 0:00:11]} 29. Nd2 {[%emt 0:01:15]} Rd4 {[%emt 0:01:45]} 30. Ke2 {[%emt 0:02:03]} Bg4+ {[%emt 0:01:59]} 31. Ke3 {[%emt 0:01:17]} Bc8 {[%emt 0:01:24]} 32. Nf3 {[%emt 0:02:07]} Rd8 {[%emt 0:00:16]} 33. Ne1 {[%emt 0:00:44]} Rd4 {[%emt 0:10:52]} 34. Nf3 {[%emt 0:00:15]} Rd6 {[%emt 0:00:43]} 35. Ne1 {[%emt 0:00:32]} Be6 {[%emt 0:00:38]} 36. Nd3 {[%emt 0:01:32]} Nxd3 {[%emt 0:00:49]} 37. Bxd3 {[%emt 0:00:10]} (37. Rxd3 $14 Bxc4 38. Rxd6 Kxd6 39. Bxa4) 37... c5 $11 {[%emt 0:00:58]} 38. Bc2 {[%emt 0:01:17]} Rb6 {[%emt 0:05:27]} 39. Bxa4 {[%emt 0:02:50]} Rxb2 {[%emt 0:00:26]} 40. Bc2 {[%emt 0:05:18]} Bd7 {[%emt 0:02:43]} 41. g3 {[%emt 0:02:45]} Rb6 {[%emt 0:00:13]} 42. Rd3 {[%emt 0:01:14]} Ra6 {[%emt 0:00:38]} 43. Rc3 {[%emt 0:00:31]} Rd6 {[%emt 0:00:26]} 44. Bd3 {[%emt 0:01:43]} Rd4 {[%emt 0:00:28]} 45. f3 {[%emt 0:01:24]} Be6 {[%emt 0:03:49]} 46. g4 {[%emt 0:03:35]} Rd8 {[%emt 0:01:41]} 47. h5 {[%emt 0:00:23]} Ra8 {[%emt 0:00:32]} 48. Kd2 {[%emt 0:02:28]} Rd8 {[%emt 0:01:20]} 49. Ke3 {[%emt 0:00:40]} Rd4 {[%emt 0:00:09]} 50. Ke2 {[%emt 0:01:02]} Bd7 {[%emt 0:00:33]} 51. Rc1 {[%emt 0:00:45]} Ba4 {[%emt 0:00:15]} 52. Rc3 {[%emt 0:00:39]} Kc6 {[%emt 0:01:00]} 53. Ke3 {[%emt 0:01:39]} b5 {[%emt 0:09:55]} 54. cxb5+ {[%emt 0:00:04]} Bxb5 {[%emt 0:00:07]} 55. Bc2 {[%emt 0:08:51] [#]} (55. Bxb5+ $11 {remains equal.} Kxb5 56. Rb3+ Ka4 57. Rb6) 55... Kb6 {[%emt 0:02:42]} (55... c4 $1 $17) 56. Bb3 {[%emt 0:03:28]} (56. Rb3 $15) 56... c4 $17 {[%emt 0:01:14]} 57. Bc2 {[%emt 0:00:02]} Kc5 {[%emt 0:01:00]} 58. Ke2 {[%emt 0:01:19]} Rd7 {[%emt 0:01:28]} 59. Ke3 {[%emt 0:00:11]} Rd8 {[%emt 0:00:42]} 60. Bb3 {[%emt 0:00:56]} Ra8 {[%emt 0:00:41]} 61. Bc2 {[%emt 0:01:17]} Ra7 {[%emt 0:00:15]} 62. Bd3 {[%emt 0:00:56]} Ra8 {[%emt 0:00:42]} (62... Rb7 $17) 63. Be2 {[%emt 0:01:33]} ({White should play} 63. Bc2 $11) 63... Rd8 {[%emt 0:00:13]} 64. Rc2 {[%emt 0:00:27]} Rd7 {[%emt 0:00:51]} 65. Rc3 {[%emt 0:00:19]} Rd4 {[%emt 0:00:19]} 66. Rc1 {[%emt 0:01:25]} Ba4 {[%emt 0:00:24]} 67. Rc3 {[%emt 0:00:42]} Bb3 {[%emt 0:00:11]} 68. Rc1 {[%emt 0:00:41]} Kb5 {[%emt 0:00:29]} 69. Ra1 $2 {[%emt 0:00:30][%mdl 8192]} (69. f4 $1 $11 {and White is okay.}) 69... Ka4 $19 {[%emt 0:00:18]} 70. Bf1 $2 {[%emt 0:00:23]} (70. f4) 70... Bc2 $19 {[%emt 0:01:25]} (70... c3 71. Bd3 Rd8 72. Rc1 $11) 71. Be2 {[%emt 0:00:18]} Kb3 {[%emt 0:00:31]} 72. Rg1 {[%emt 0:02:28]} c3 {[%emt 0:01:14]} 73. a4 {[%emt 0:00:20]} Rxa4 {[%emt 0:00:37]} 74. Bd1 {[%emt 0:00:22]} Bxd1 {[%emt 0:00:14]} 75. Rxd1 {[%emt 0:00:01]} c2 {[%emt 0:26:46]} 0-1

[Event "21st RLP-Seniors Open 2024"]
[Site "Altenkirchen Ww"]
[Date "2024.09.04"]
[Round "2.4"]
[White "Heck, Norbert"]
[Black "Kalepky, Helmut"]
[Result "1-0"]
[Annotator "TA"]
[ECO "A93"]
[WhiteElo "2112"]
[BlackElo "1947"]
[PlyCount "85"]
[EventDate "2024.09.02"]
[EventType "swiss"]
[EventCountry "GER"]
[SourceTitle "playchess.com"]
[Source "ChessBase"]
[SourceQuality "1"]
[TimeControl "40/5400+30:1800+30"]

{[%evp 15,85,36,39,38,41,48,50,34,39,33,53,35,75,13,38,-24,-16,0,69,10,9,12,5,14,26,0,29,22,43,9,62,50,89,97,97,89,135,114,247,256,222,246,422,221,213,221,202,213,329,329,349,329,570,376,669,661,1471,1428,1821,1746,2136,1985,5397,958,29989,29987,29987,29987,29988,29988,29990,29991]} 1. Nf3 {[%emt 0:00:04]} f5 {[%emt 0:00:21]} 2. d4 {[%emt 0:00:14]} e6 {[%emt 0:00:26]} 3. g3 {[%emt 0:00:12]} Nf6 {[%emt 0:00:43][%cal Bg8f6,Bf6e4,Be4d2][%mdl 32]} 4. Bg2 {[%emt 0:00:07]} Be7 {[%emt 0:02:10]} 5. O-O {[%emt 0:00:14]} O-O {[%emt 0:00:06]} 6. c4 {[%emt 0:00:04]} c6 {[%emt 0:02:21]} 7. b3 {[%emt 0:00:20]} d5 {[%emt 0:03:01]} 8. Bb2 {[%emt 0:00:17]} Ne4 {[%emt 0:08:58]} 9. Nbd2 {[%emt 0:00:47]} Nxd2 {[%emt 0:02:53]} 10. Qxd2 {[%emt 0:00:14]} Nd7 {[%emt 0:03:23]} 11. Qc2 {[%emt 0:00:27] White is slightly better.} Bd6 {[%emt 0:08:04]} 12. e3 {[%emt 0:01:53]} Qf6 {[%emt 0:04:05]} 13. Rac1 {[%emt 0:00:56]} g5 {[%emt 0:05:32]} 14. a3 {[%emt 0:06:09]} ({White should play} 14. h3 $16) 14... Rf7 {[%emt 0:05:58]} 15. b4 {[%emt 0:00:24]} (15. h3 $14) 15... g4 $11 {[%emt 0:00:53]} 16. Nd2 {[%emt 0:01:14]} Nf8 {[%emt 0:01:42]} ({Black should try} 16... h5 $11) 17. b5 {[%emt 0:00:19]} (17. f3 $14) 17... Bd7 {[%emt 0:10:54]} 18. a4 {[%emt 0:01:15]} h5 {[%emt 0:00:47]} 19. Qb3 {[%emt 0:03:04]} Rd8 {[%emt 0:05:05]} 20. Ba3 {[%emt 0:00:19]} Bxa3 {[%emt 0:01:08]} 21. Qxa3 {[%emt 0:00:11]} Be8 {[%emt 0:03:53]} 22. bxc6 {[%emt 0:02:01]} bxc6 {[%emt 0:00:13]} (22... Bxc6 $11 23. cxd5 exd5) 23. Rb1 {[%emt 0:00:49]} Rc7 {[%emt 0:04:43]} 24. Rfc1 {[%emt 0:00:13]} Rdc8 {[%emt 0:01:36]} 25. a5 {[%emt 0:01:41]} Qd8 {[%emt 0:00:34]} (25... Kf7 $142) 26. a6 $16 {[%emt 0:00:27] White is more active.} Bf7 {[%emt 0:02:54] This costs Black the game.} (26... Qd7 $16 27. Nb3 h4 28. gxh4 Ng6 29. cxd5 (29. Nc5 Qe7 $18) 29... exd5) 27. Rb7 $18 {[%emt 1:20:05]} Rb8 {[%emt 0:03:12]} 28. Rcb1 {[%emt 0:00:00]} Rcxb7 {[%emt 0:01:41]} (28... Rbxb7 29. Rxb7 (29. axb7 Qb8 $18) 29... Qc8) 29. axb7 {[%emt 0:00:00]} (29. Rxb7 $142 Ra8 30. Qc5) 29... a5 {[%emt 0:02:04]} 30. cxd5 {[%emt 0:00:00]} exd5 {[%emt 0:01:09] [#]} 31. Bf1 $1 {[%emt 0:00:00]} Ne6 {[%emt 0:04:00]} (31... Bg6 {was worth a try.} 32. Rb2 Ne6) 32. Ba6 {[%emt 0:00:00]} Qc7 {[%emt 0:00:36]} 33. Nb3 {[%emt 0:00:00]} c5 $2 {[%emt 0:02:36]} (33... a4 {keeps fighting.}) 34. Qxa5 {[%emt 0:00:00]} cxd4 $2 {[%emt 0:01:01]} (34... c4 35. Qxc7 Nxc7) 35. Rc1 {[%emt 0:00:00]} Qd6 {[%emt 0:02:59]} 36. Rc8+ {[%emt 0:00:00]} Kg7 {[%emt 0:00:05][%cal Bg8g7,Bg7f6,Bf6g6][%mdl 32]} 37. Nxd4 {[%emt 0:00:00]} Nxd4 {[%emt 0:00:55]} 38. exd4 {[%emt 0:00:00] [#] Rxb8 would now be deadly.} Kf6 {[%emt 0:02:58]} 39. Qc7 {[%emt 0:00:00]} (39. Rxb8 $142 Qxb8 40. Qc5) 39... Qxa6 {[%emt 0:01:09]} 40. Qe5+ {[%emt 0:00:00] White mates.} Kg6 {[%emt 0:00:25]} 41. Rxb8 {[%emt 0:00:00]} Qd3 {[%emt 0:05:53]} 42. Qe3 {[%emt 0:00:00]} Qb5 {[%emt 0:00:43]} 43. Rh8 {[%emt 0:00:00] Weighted Error Value: White=0.27 (precise) /Black=0.65.  Mistake:       	White=4     	Black=8      Inaccurate:     	White=3     	Black=4      OK:         	White=9     	Black=6      Best:        	White=2     	Black=1} 1-0

[Event "21st RLP-Seniors Open 2024"]
[Site "Altenkirchen Ww"]
[Date "2024.09.04"]
[Round "2.5"]
[White "Geyer, Bernhard"]
[Black "Hiller, Joachim"]
[Result "1-0"]
[Annotator "RC"]
[ECO "C26"]
[WhiteElo "2096"]
[BlackElo "1931"]
[PlyCount "53"]
[EventDate "2024.09.02"]
[EventType "swiss"]
[EventCountry "GER"]
[SourceTitle "playchess.com"]
[Source "ChessBase"]
[SourceQuality "1"]
[TimeControl "40/5400+30:1800+30"]

1. e4 {[%emt 0:00:30]} e5 {[%emt 0:00:14]} 2. Nc3 {[%emt 0:00:27]} Nf6 {[%emt 0:00:07]} 3. g3 {[%emt 0:01:21]} Bc5 {[%emt 0:02:52]} 4. Bg2 {[%emt 0:01:14]} O-O {[%emt 0:01:40]} 5. Nge2 {[%emt 0:01:49]} Nc6 {[%emt 0:03:22]} 6. O-O {[%emt 0:00:14]} Re8 {[%emt 0:02:24]} 7. d3 {[%emt 0:00:26]} a6 {[%emt 0:03:16]} 8. h3 {[%emt 0:01:57]} Nd4 {[%emt 0:02:23]} 9. Kh2 {[%emt 0:00:30]} h6 {[%emt 0:04:57]} 10. Ng1 {[%emt 0:01:21]} c6 {[%emt 0:02:22]} 11. f4 {[%emt 0:02:29]} d6 {[%emt 0:03:15]} 12. Nf3 {[%emt 0:05:29]} Nxf3+ {[%emt 0:10:17]} 13. Qxf3 {[%emt 0:00:34]} Kh7 {[%emt 0:07:55]} 14. g4 {[%emt 0:02:18]} exf4 {[%emt 0:16:23]} 15. Bxf4 {[%emt 0:01:02]} Ng8 {[%emt 0:03:42]} 16. g5 {[%emt 0:03:55]} Be6 {[%emt 0:02:23]} 17. Ne2 {[%emt 0:05:18]} hxg5 {[%emt 0:05:13]} 18. Qh5+ {[%emt 0:00:25]} Nh6 {[%emt 0:00:05]} 19. Bxg5 {[%emt 0:00:15]} f6 {[%emt 0:00:04]} 20. Bxh6 {[%emt 0:01:01]} gxh6 {[%emt 0:00:03]} 21. Nf4 {[%emt 0:00:34]} Qe7 {[%emt 0:06:11]} 22. Qg6+ {[%emt 0:00:41]} Kh8 {[%emt 0:00:07]} 23. Qxh6+ {[%emt 0:00:15]} Kg8 {[%emt 0:00:12]} 24. Nh5 {[%emt 0:00:35]} Bd4 {[%emt 0:04:32]} 25. Nxf6+ {[%emt 1:08:20]} Bxf6 {[%emt 0:00:33]} 26. Rxf6 {[%emt 0:00:00]} Bf7 {[%emt 0:00:09]} 27. Bf3 {[%emt 0:00:00]} 1-0

[Event "21st RLP-Seniors Open 2024"]
[Site "Altenkirchen Ww"]
[Date "2024.09.04"]
[Round "2.6"]
[White "Richter, Gerald"]
[Black "Siebenhaar, Erich"]
[Result "1/2-1/2"]
[Annotator "TA"]
[ECO "A84"]
[WhiteElo "1955"]
[BlackElo "2087"]
[PlyCount "107"]
[EventDate "2024.09.02"]
[EventType "swiss"]
[EventCountry "GER"]
[SourceTitle "playchess.com"]
[Source "ChessBase"]
[SourceQuality "1"]
[TimeControl "40/5400+30:1800+30"]

{[%evp 15,107,39,50,18,45,40,50,34,53,29,32,25,40,16,4,24,8,0,9,0,0,0,0,-33,-15,-28,-13,-119,-130,-141,-141,-143,-143,-145,-128,-143,-143,-152,-133,-153,-152,-162,-148,-154,-135,-142,-137,-135,-128,-192,-172,-203,-191,-210,-209,-223,-217,-198,-177,-163,-146,-347,-284,-349,-177,-527,-341,-591,-289,-580,-576,-520,-450,-514,-494,-577,-576,-1048,-1016,-1683,-1766,-1876,-1696,-2246,-1377,-1502,-1084,-1075,-779,-653,0,0,0,0]} 1. d4 {[%emt 0:00:05]} e6 {[%emt 0:00:05]} 2. Nf3 {[%emt 0:00:28]} b6 {[%emt 0:00:11]} 3. g3 {[%emt 0:00:37]} Bb7 {[%emt 0:00:14]} 4. Bg2 {[%emt 0:00:11]} f5 {[%emt 0:00:10]} 5. O-O {[%emt 0:01:04]} Nf6 {[%emt 0:00:07]} 6. c4 {[%emt 0:01:59]} Be7 {[%emt 0:00:25]} 7. Nc3 {[%emt 0:01:26]} O-O {[%emt 0:00:33]} 8. d5 {[%emt 0:07:16]} Na6 {[%emt 0:10:24]} 9. Bf4 {[%emt 0:21:09]} Nh5 {[%emt 0:09:16]} 10. d6 {[%emt 0:15:35]} cxd6 {[%emt 0:01:25]} 11. Bxd6 {[%emt 0:00:12] White is slightly better.} Nf6 {[%emt 0:03:25]} 12. Ne5 {[%emt 0:03:00]} Bxg2 {[%emt 0:00:33]} 13. Kxg2 {[%emt 0:00:35]} Nc5 {[%emt 0:01:33]} 14. f3 {[%emt 0:01:56]} Nb7 {[%emt 0:02:30]} 15. Bxe7 {[%emt 0:04:18]} Qxe7 {[%emt 0:01:58]} 16. Qd4 {[%emt 0:02:47]} Rac8 {[%emt 0:16:05]} 17. Rad1 {[%emt 0:06:05]} d6 {[%emt 0:01:40]} 18. Nd3 {[%emt 0:00:18]} e5 $36 {[%emt 0:00:25][%mdl 2048] Black has the initiative.} 19. Nd5 {[%emt 0:03:06]} Qf7 {[%emt 0:03:15]} 20. Nxf6+ {[%emt 0:05:38]} gxf6 {[%emt 0:00:07]} 21. Qd5 {[%emt 0:05:24]} (21. Qe3 $11 {keeps the balance.}) 21... Rxc4 $17 {[%emt 0:00:26]} 22. Qxf7+ {[%emt 0:00:49]} Kxf7 {[%emt 0:00:12]} 23. Rd2 {[%emt 0:01:12]} Rfc8 {[%emt 0:00:24]} 24. Rfd1 {[%emt 0:00:29]} Ke6 {[%emt 0:00:18]} 25. Kf2 {[%emt 0:01:45]} a5 {[%emt 0:04:05]} 26. Ke1 {[%emt 0:04:52]} Rc2 {[%emt 0:00:18]} 27. b3 {[%emt 0:01:07]} h5 {[%emt 0:04:40]} 28. Nb2 {[%emt 0:03:23]} Rxd2 {[%emt 0:00:42]} ({Don't do} 28... b5 29. Rxc2 Rxc2 30. Rb1 $17) 29. Kxd2 $19 {[%emt 0:00:36][%mdl 4096] Endgame. KRN-KRN} b5 {[%emt 0:01:55]} 30. Nd3 {[%emt 0:04:00]} Nc5 {[%emt 0:03:24]} 31. Rc1 {[%emt 0:00:29]} Kd7 {[%emt 0:00:02]} 32. Rg1 {[%emt 0:01:32]} (32. Ne1 $17 {was forced.}) 32... Ne6 {[%emt 0:01:17]} 33. e3 {[%emt 0:00:45]} Rg8 {[%emt 0:00:40]} 34. Ke2 {[%emt 0:00:46]} h4 {[%emt 0:00:50]} 35. f4 {[%emt 0:00:53]} hxg3 {[%emt 0:00:31]} 36. hxg3 {[%emt 0:00:19]} Nc5 {[%emt 0:01:03]} 37. Nxc5+ {[%emt 0:00:21]} dxc5 {[%emt 0:00:01] KR-KR} 38. Kf3 $2 {[%emt 0:00:47]} (38. fxe5 $17 {was called for.} fxe5 39. Rc1) 38... Ke6 {[%emt 0:34:21]} 39. Rd1 {[%emt 0:01:00]} Rc8 {[%emt 0:00:00]} (39... e4+ $142 40. Kg2 Rh8) 40. Rg1 $2 {[%emt 0:01:29]} (40. fxe5 {is more resistant.} fxe5 41. e4) 40... c4 {[%emt 0:00:00] [#] ...e4+ would now be deadly.} 41. bxc4 $2 {[%emt 0:00:50]} (41. fxe5 fxe5 42. e4) 41... Rxc4 {[%emt 0:00:00]} (41... e4+ $142 42. Kg2 Rxc4 (42... bxc4 $2 43. Rd1 $19)) 42. g4 $2 {[%emt 0:00:49]} (42. fxe5 fxe5 43. a3) 42... e4+ {[%emt 0:00:00]} 43. Kg3 {[%emt 0:00:17]} Rc2 {[%emt 0:00:00]} 44. gxf5+ {[%emt 0:01:52]} Kxf5 {[%emt 0:00:00]} 45. Rh1 {[%emt 0:01:10]} Kg6 {[%emt 0:00:00] Dodges Rh5} ({Stronger than} 45... Rxa2 46. Rh5+ Ke6 47. Rxb5 $11) 46. Rb1 {[%emt 0:02:03]} b4 {[%emt 0:00:00]} ({Not} 46... Rxa2 47. Rxb5 Ra1 48. Kg4 $11) 47. a3 {[%emt 0:00:29]} bxa3 {[%emt 0:00:00] [#] And now ...a2 would win.} 48. Rb5 {[%emt 0:00:25]} Re2 {[%emt 0:00:00]} 49. Rxa5 {[%emt 0:00:53]} Rxe3+ {[%emt 0:00:00]} 50. Kg4 {[%emt 0:00:42]} Rf3 {[%emt 0:00:00][%cal Of6f5] White must now prevent ...f5+!} 51. f5+ {[%emt 0:00:55]} Kf7 {[%emt 0:00:00]} 52. Ra4 {[%emt 0:00:16]} Rf1 $2 {[%emt 0:00:00]} ({Better is} 52... Rc3 $19 {...e3 is the strong threat.} 53. Ra6 Ke7 54. Re6+ Kd7) 53. Ra7+ {[%emt 0:00:42]} Ke8 {[%emt 0:00:00]} 54. Rxa3 {[%emt 0:00:17] Weighted Error Value: White=0.77/Black=0.44.  Loses game:     	White=1     	---        Mistake:       	White=5     	Black=2      Inaccurate:     	White=3     	Black=2      OK:         	White=7     	Black=18     Best:        	White=1     	Black=1} 1/2-1/2